bitfinex/quotes_ETHUSD_20241225
["timestamp","ask_amount","ask_price","bid_price","bid_amount"]
[1735134078896,0.04382535,3485.5,3484.9,0.8279]
[1735134079220,0.04382535,3485.5,3484.7,4.029783]
[1735134079564,0.04382535,3485.5,3484.8,0.7727433]
[1735134083492,0.04382535,3485.5,3484.7,0.479783]
[1735134084191,2.86933,3485.2,3484.5,1.20492749]
[1735134084360,2.78677395,3485.5,3484.5,1.20492749]
[1735134084361,0.7822,3485.1,3484.5,1.20492749]
[1735134084550,2.86967,3484.8,3484.5,1.20492749]
[1735134084755,0.7822,3484.7,3484.5,1.20492749]
[1735134084970,0.82607178,3484.7,3484.5,1.20492749]
[1735134085851,0.82607178,3484.7,3483.8,2.87041]
[1735134086056,0.82607178,3484.7,3483.8,0.87101436]
[1735134086281,0.82607178,3484.7,3484.1,0.7531]
[1735134087287,0.04387178,3484.7,3484.3,2.87]
[1735134087488,0.7822,3485.2,3484.3,2.87]
[1735134087788,0.04374412,3484.6,3484.1,0.7531]
[1735134087989,3.65148,3485.2,3484.2,0.32608785]
[1735134088191,0.04374412,3484.5,3484.2,0.32608785]
[1735134088394,3.65148,3485.2,3484.2,0.32608785]
[1735134088686,0.04374412,3485.1,3484.2,0.32608785]
[1735134089958,2.86963,3484.8,3483.9,4.20492749]
[1735134090273,0.7822,3484.7,3483.9,1.20492749]
[1735134090470,0.82601375,3484.7,3483.9,1.20492749]
[1735134090667,2.86991,3484.5,3483.9,1.20492749]
[1735134090994,0.7822,3484.3,3483.9,1.20492749]
[1735134091498,0.04381375,3484.2,3483.9,1.20492749]
[1735134091699,0.7822,3484.3,3483.5,4.35721817]
[1735134091898,0.04369188,3484.1,3483.5,4.35721817]
[1735134092063,0.7822,3484.3,3483.5,4.35721817]
[1735134092265,0.04369188,3484.0,3483.6,0.63152457]
[1735134092463,0.7822,3484.3,3483.6,0.63152457]
[1735134092664,0.04369188,3483.9,3483.6,0.63152457]
[1735134092892,0.7822,3484.3,3483.6,0.63152457]
[1735134093089,0.04369188,3483.8,3483.6,1.62241176]
[1735134093291,0.7822,3484.3,3483.6,1.62241176]
[1735134093488,0.04369188,3483.7,3483.6,1.62241176]
[1735134093678,0.7822,3484.3,3483.6,1.62241176]
[1735134093880,0.7822,3484.3,3483.7,0.64511093]
[1735134094198,0.7822,3484.3,3483.8,0.55]
[1735134094361,0.7822,3484.3,3483.4,6.62378]
[1735134094999,0.7822,3484.3,3483.4,1.95802749]
[1735134095209,0.7822,3484.3,3483.6,2.87058]
[1735134096175,0.7822,3484.3,3483.4,4.95802749]
[1735134096380,0.7822,3484.3,3483.4,7.78695914]
[1735134098275,0.7822,3484.3,3483.4,7.03385914]
[1735134100405,0.7822,3484.3,3483.5,2.87067]
[1735134101716,0.777,3484.1,3483.2,1.20492749]
[1735134101879,0.81281201,3484.0,3483.2,1.20492749]
[1735134102078,3.64743,3483.8,3483.2,1.20492749]
[1735134102282,0.777,3483.6,3483.2,1.20492749]
[1735134102483,0.03581201,3483.5,3483.2,1.20492749]
[1735134102686,0.04332032,3483.5,3483.2,1.20492749]
[1735134103084,0.777,3483.4,3483.2,1.20492749]
[1735134103405,0.82009385,3483.4,3483.2,1.20492749]
[1735134103605,0.82009385,3483.4,3483.2,3.17214187]
[1735134103606,0.04309385,3483.4,3483.2,3.17214187]
[1735134103808,0.777,3483.7,3483.2,0.30123187]
[1735134104124,0.777,3484.4,3483.5,2.87067]
[1735134104821,0.777,3484.4,3483.3,2.87083]
[1735134105871,0.777,3484.3,3483.3,2.87083]
[1735134109486,0.777,3484.2,3483.3,2.87083]
[1735134109811,0.777,3484.2,3483.1,0.55]
[1735134109812,0.777,3484.2,3483.4,4.010633]
[1735134110200,0.777,3484.2,3483.4,3.212833]
[1735134114618,0.777,3484.2,3483.4,0.342083]
[1735134114819,0.777,3484.2,3483.6,2.87058]
[1735134116814,0.03843475,3484.1,3483.6,2.87058]
[1735134117918,0.03843475,3484.1,3483.2,3.0]
[1735134118095,0.777,3484.2,3483.4,2.87072]
[1735134118295,0.03843475,3484.0,3483.4,2.87072]
[1735134118485,0.777,3484.2,3483.4,3.575125]
[1735134118693,0.03843475,3483.9,3483.4,3.575125]
[1735134118883,0.777,3484.2,3483.4,3.575125]
[1735134119216,0.03843475,3483.8,3483.4,3.575125]
[1735134119406,0.777,3484.2,3483.4,3.575125]
[1735134119604,0.03843475,3483.7,3483.4,2.87072]
[1735134119923,0.03581201,3484.1,3483.4,2.87072]
[1735134120097,0.03843475,3483.6,3483.4,2.87072]
[1735134120418,0.777,3484.2,3483.5,2.87065]
[1735134120844,0.03843475,3484.1,3483.5,2.87065]
[1735134121011,0.03843475,3484.1,3483.2,3.0]
[1735134121362,0.7611,3484.0,3483.2,3.0]
[1735134121557,0.79956962,3484.0,3483.2,3.0]
[1735134122044,0.79956962,3484.0,3483.2,2.87092]
[1735134124010,0.7611,3483.8,3482.9,1.76640098]
[1735134124260,0.40638417,3483.7,3482.9,1.76640098]
[1735134124547,0.7611,3483.8,3482.9,4.63753098]
[1735134124845,0.03836495,3483.6,3482.9,4.63753098]
[1735134125144,0.7611,3483.8,3482.9,3.43260349]
[1735134125458,0.03836495,3483.5,3482.9,3.43260349]
[1735134125676,0.7611,3483.8,3482.9,3.43260349]
[1735134125952,0.03836495,3483.7,3482.9,3.43260349]
[1735134126250,0.03836495,3483.7,3482.9,4.27159659]
[1735134127063,0.03836495,3483.7,3483.0,2.87106]
[1735134127421,0.03836495,3483.7,3483.4,2.87074]
[1735134127763,0.7844,3484.0,3483.4,2.87074]
[1735134128094,0.0382719,3483.6,3483.4,2.87074]
[1735134128391,0.7844,3484.0,3483.4,0.287074]
[1735134128559,0.7844,3484.0,3483.3,2.87081]
[1735134128895,0.03813816,3483.9,3483.3,2.87081]
[1735134130302,0.03813816,3483.9,3483.1,4.20492749]
[1735134130596,0.7844,3484.0,3483.5,0.7754]
[1735134130942,0.03817887,3483.9,3483.5,0.7754]
[1735134131196,0.7844,3484.0,3483.5,1.140008]
[1735134131677,0.03817887,3483.9,3483.5,1.140008]
[1735134131885,0.03817887,3483.9,3483.5,4.010648]
[1735134132065,2.39701565,3484.8,3483.6,2.87053]
[1735134132066,0.7844,3484.4,3483.6,2.87053]
[1735134132286,0.7844,3484.4,3483.7,0.55]
[1735134132442,0.03817887,3484.3,3484.1,0.7754]
[1735134132873,0.03817887,3484.3,3484.2,3.42009]
[1735134133083,1.19440686,3484.6,3483.8,2.87041]
[1735134133254,0.7844,3484.4,3483.6,0.58160558]
[1735134133462,0.7844,3484.4,3483.7,1.20492749]
[1735134133897,0.03860334,3484.3,3483.7,1.20492749]
[1735134134648,0.03860334,3484.3,3483.6,1.49020281]
[1735134136055,0.03860334,3484.3,3483.7,0.99362134]
[1735134138005,0.03860334,3484.3,3483.5,4.72618406]
[1735134139336,0.03860334,3484.3,3483.6,2.48468282]
[1735134140692,0.8144,3484.2,3483.6,2.48468282]
[1735134140901,0.85300334,3484.2,3483.7,2.48468282]
[1735134142193,0.85300334,3484.2,3483.8,0.99387313]
[1735134143586,0.85300334,3484.2,3483.6,4.07551749]
[1735134143825,0.85300334,3484.2,3483.7,0.85216076]
[1735134144793,0.85300334,3484.2,3483.8,1.49017162]
[1735134146228,0.85300334,3484.2,3483.9,0.99359882]
[1735134146613,0.03860334,3484.2,3483.9,0.99359882]
[1735134146911,0.03860334,3484.2,3483.9,3.86390882]
[1735134147233,0.7679,3484.5,3484.0,2.87026]
[1735134147594,0.0385045,3484.4,3484.0,2.87026]
[1735134148707,0.0385045,3484.4,3484.1,2.48430452]
[1735134149935,0.0385045,3484.4,3484.0,2.87026]
[1735134150230,0.0385045,3484.4,3483.9,1.20492749]
[1735134150746,0.7679,3484.2,3483.9,1.20492749]
[1735134151095,0.7679,3484.2,3483.6,1.20492749]
[1735134151489,0.03881264,3484.1,3483.6,1.20492749]
[1735134152238,0.03881264,3484.1,3483.7,2.4866194]
[1735134153732,0.03881264,3484.1,3483.8,2.4866194]
[1735134155101,0.03881264,3484.1,3483.6,1.20492749]
[1735134156203,0.03881264,3484.1,3483.5,4.07559749]
[1735134157155,0.03881264,3484.1,3483.6,2.48686056]
[1735134158013,0.23892459,3484.1,3483.6,2.48686056]
[1735134158236,0.23892459,3484.1,3483.7,0.99474422]
[1735134158237,0.7945,3483.9,3483.7,0.99474422]
[1735134158658,0.83309756,3483.8,3483.7,0.99474422]
[1735134159362,3.70351756,3483.8,3483.7,0.99474422]
[1735134159653,3.66505,3483.7,3483.0,1.20492749]
[1735134159845,0.7945,3483.6,3483.0,1.20492749]
[1735134160043,0.83271375,3483.6,3483.0,1.20492749]
[1735134161335,0.83271375,3483.6,3483.1,0.99498989]
[1735134161731,3.70332375,3483.6,3483.1,0.99498989]
[1735134161937,1.28427306,3483.5,3483.1,0.99498989]
[1735134162430,0.03821375,3483.4,3483.0,0.99498989]
[1735134163873,0.03821375,3483.4,3482.9,0.99498989]
[1735134164778,0.03821375,3483.4,3482.8,1.49173013]
[1735134164960,3.66535,3483.3,3482.8,1.49173013]
[1735134165276,0.03803928,3483.2,3482.8,1.49173013]
[1735134166085,0.03803928,3483.2,3482.7,2.48623133]
[1735134167544,0.07385129,3483.2,3482.7,2.48623133]
[1735134167879,0.07385129,3483.2,3482.6,1.49173013]
[1735134168082,0.03803928,3483.2,3482.6,1.49173013]
[1735134169392,0.03581201,3483.1,3482.6,1.49173013]
[1735134169611,0.7945,3483.3,3482.6,1.49173013]
[1735134169772,0.03785899,3483.2,3482.6,1.49173013]
[1735134170107,0.073671,3483.2,3482.6,1.49173013]
[1735134170285,0.073671,3483.2,3482.7,0.99438169]
[1735134170458,0.03785899,3483.2,3482.7,0.99438169]
[1735134170653,0.073671,3483.2,3482.7,0.99438169]
[1735134171267,0.03785899,3483.2,3482.7,0.99438169]
[1735134171560,0.03785899,3483.2,3482.6,0.99438169]
[1735134172269,0.03785899,3483.2,3482.7,2.87131]
[1735134172468,0.7945,3483.3,3482.7,2.87131]
[1735134172984,0.0376554,3483.2,3482.6,1.66650966]
[1735134173195,0.7945,3483.3,3482.6,1.66650966]
[1735134173371,0.0376554,3483.2,3482.6,1.66650966]
[1735134173696,0.7945,3483.3,3482.6,1.66650966]
[1735134173896,0.7945,3483.3,3482.6,0.99438169]
[1735134174199,0.0376554,3483.2,3482.5,1.20492749]
[1735134174384,0.7945,3483.3,3482.5,1.20492749]
[1735134174561,0.0376554,3483.2,3482.5,1.20492749]
[1735134174761,0.7945,3483.3,3482.5,2.16773363]
[1735134174984,0.83031201,3483.3,3482.5,2.16773363]
[1735134175190,0.0376554,3483.2,3482.5,2.16773363]
[1735134175360,0.7945,3483.3,3482.5,2.16773363]
[1735134175560,0.0376554,3483.2,3482.5,3.83421614]
[1735134175797,0.7945,3483.3,3482.6,1.04265825]
[1735134176096,0.0376554,3483.2,3482.6,1.04265825]
[1735134176560,0.7945,3483.3,3482.6,1.04265825]
[1735134176762,0.03770776,3483.2,3482.7,0.99358052]
[1735134176963,0.7945,3483.3,3482.7,0.99358052]
[1735134177167,0.03770776,3483.2,3482.7,0.99358052]
[1735134177382,0.7945,3483.3,3482.7,0.99358052]
[1735134177581,0.03770776,3483.2,3482.7,0.99358052]
[1735134177783,0.7945,3483.3,3482.7,0.99358052]
[1735134177992,0.03770776,3483.2,3482.7,0.99358052]
[1735134178199,0.7945,3483.3,3482.7,0.99358052]
[1735134178397,0.03770776,3483.2,3482.7,0.99358052]
[1735134178599,0.7945,3483.3,3482.7,0.99358052]
[1735134178786,0.03770776,3483.2,3482.7,0.99358052]
[1735134178979,0.7945,3483.3,3482.7,0.99358052]
[1735134179198,0.03770776,3483.2,3482.7,0.99358052]
[1735134179405,0.7945,3483.3,3482.7,0.99358052]
[1735134179711,0.03770776,3483.2,3482.7,0.99358052]
[1735134180008,0.7945,3483.3,3482.7,0.99358052]
[1735134180308,0.03770776,3483.2,3482.9,0.56988247]
[1735134180802,0.03736238,3483.1,3482.9,0.56988247]
[1735134181011,0.03581201,3483.2,3482.9,0.56988247]
[1735134181199,0.03737401,3483.1,3482.9,0.56988247]
[1735134181400,0.7945,3483.3,3482.9,0.56988247]
[1735134181599,0.03737401,3483.2,3482.9,0.56988247]
[1735134187516,0.03737401,3483.2,3482.4,7.07647749]
[1735134187693,0.03581201,3483.1,3482.4,7.07647749]
[1735134187894,0.07328492,3483.1,3482.4,8.28127986]
[1735134188239,0.03581201,3483.1,3482.4,8.28127986]
[1735134188416,0.03747291,3483.0,3482.4,1.20480237]
[1735134188717,2.08254849,3483.3,3482.6,2.87139]
[1735134188911,0.7945,3483.3,3482.6,2.87139]
[1735134189103,0.03747291,3483.2,3482.6,2.87139]
[1735134189621,0.03747291,3483.2,3482.7,2.87132]
[1735134189830,0.03747291,3483.2,3482.7,3.67836018]
[1735134191623,0.7945,3483.3,3482.7,3.67836018]
[1735134191829,0.03747291,3483.2,3482.7,2.87132]
[1735134192029,0.7945,3483.3,3482.7,2.87132]
[1735134192233,0.03747291,3483.2,3482.7,2.87132]
[1735134192438,0.7945,3483.3,3482.7,2.87132]
[1735134192625,0.03747291,3483.2,3482.7,2.87132]
[1735134192802,0.7945,3483.3,3482.7,2.87132]
[1735134193003,0.03747291,3483.2,3482.7,2.87132]
[1735134193204,0.7945,3483.3,3482.7,2.87132]
[1735134193427,0.03747291,3483.2,3482.7,2.87132]
[1735134193740,0.7945,3483.3,3482.7,2.87132]
[1735134194037,1.28804849,3483.1,3482.4,1.20492749]
[1735134194222,0.81481201,3483.0,3482.4,1.20492749]
[1735134194430,0.03746128,3482.9,3482.4,1.20492749]
[1735134194804,0.81481201,3483.0,3482.3,2.87162]
[1735134195007,0.03746128,3482.9,3482.3,2.87162]
[1735134195315,0.81481201,3483.0,3482.4,2.87158]
[1735134195623,0.03746128,3482.9,3482.8,2.87124]
[1735134195823,0.779,3483.5,3482.8,2.87124]
[1735134196028,0.03728676,3483.4,3482.8,2.87124]
[1735134196427,0.03728676,3483.4,3482.8,0.38689432]
[1735134196599,0.03728676,3483.4,3483.3,4.96808849]
[1735134197027,0.03728676,3483.4,3483.3,5.51808849]
[1735134197617,1.19440686,3484.0,3483.7,2.87043]
[1735134197812,0.03731585,3483.9,3483.8,2.87042]
[1735134198012,0.03731585,3483.9,3483.8,4.64546685]
[1735134198620,0.03731585,3483.9,3483.8,7.64546685]
[1735134198824,0.03731585,3483.9,3483.8,10.13162247]
[1735134199012,1.19440686,3484.9,3484.1,2.87018]
[1735134199215,1.19440686,3484.9,3484.0,0.8092]
[1735134199216,0.03645002,3484.6,3484.0,0.8092]
[1735134199525,2.86993,3484.4,3483.8,2.48615562]
[1735134199726,0.7587,3484.3,3483.8,2.48615562]
[1735134199968,0.79548722,3484.3,3483.8,2.48615562]
[1735134200347,0.79548722,3484.3,3484.1,0.99498307]
[1735134200546,1.20237612,3484.3,3484.1,0.99498307]
[1735134201068,2.90590201,3484.2,3484.1,0.99498307]
[1735134201284,3.62879,3484.2,3484.1,0.99498307]
[1735134201572,3.66551908,3484.2,3484.1,0.99498307]
[1735134201773,3.66551908,3484.2,3483.5,1.49102688]
[1735134202069,0.7587,3484.0,3483.5,1.49102688]
[1735134202668,0.03672908,3483.9,3483.5,1.49102688]
[1735134203057,0.03672908,3483.9,3483.2,1.49102688]
[1735134203277,0.07254109,3483.9,3483.2,1.49102688]
[1735134203589,2.87043,3483.8,3483.2,1.49102688]
[1735134203876,0.79451201,3483.7,3483.2,1.49102688]
[1735134204030,3.70175109,3483.7,3483.2,1.49102688]
[1735134204459,3.70175109,3483.7,3483.3,2.48536326]
[1735134204660,0.79542908,3483.7,3483.3,2.48536326]
[1735134205947,0.79542908,3483.7,3482.9,2.87114]
[1735134206963,0.79542908,3483.7,3483.0,2.48616475]
[1735134207175,0.79542908,3483.7,3483.2,0.57778811]
[1735134215334,0.79542908,3483.7,3483.0,1.49157077]
[1735134215512,3.66593908,3483.7,3483.0,1.49157077]
[1735134216124,3.70175109,3483.7,3483.0,1.49157077]
[1735134216528,3.66593908,3483.7,3483.0,1.49157077]
[1735134216715,0.41126173,3483.6,3483.0,1.49157077]
[1735134216941,3.66593908,3483.7,3483.0,1.49157077]
[1735134217255,3.62921,3483.7,3483.0,1.49157077]
[1735134217553,0.03667686,3483.6,3483.0,1.49157077]
[1735134217856,0.7902,3483.5,3483.1,0.99447296]
[1735134218362,0.7902,3483.3,3483.1,0.99447296]
[1735134218734,0.7902,3483.3,3483.0,1.49157077]
[1735134218936,0.03667686,3483.2,3483.0,1.49157077]
[1735134219933,0.03667686,3483.2,3482.9,1.49157077]
[1735134220133,0.03667686,3483.2,3482.9,2.42804491]
[1735134220846,0.7902,3483.6,3482.9,2.42804491]
[1735134221090,0.03667686,3483.5,3482.9,2.42804491]
[1735134221233,0.03667686,3483.5,3483.0,2.48683437]
[1735134222435,0.03667686,3483.5,3483.1,0.9952636]
[1735134223249,0.03667686,3483.5,3482.9,1.20492749]
[1735134224775,0.03667686,3483.5,3483.0,2.48832656]
[1735134225769,0.03667686,3483.5,3483.1,0.99533062]
[1735134226186,0.7902,3483.4,3483.1,0.99533062]
[1735134226683,0.03659546,3483.3,3483.0,0.99533062]
[1735134227047,0.7902,3483.2,3483.0,0.99533062]
[1735134227381,4.1583696,3483.4,3483.0,0.99533062]
[1735134227382,4.98542576,3483.1,3483.0,0.99533062]
[1735134227880,4.98542576,3483.1,3482.3,3.00493771]
[1735134227881,4.98542576,3483.1,3482.5,1.49319643]
[1735134228085,2.0777896,3482.7,3482.5,1.49319643]
[1735134228291,3.69768778,3482.6,3482.5,1.49319643]
[1735134228594,6.69768778,3482.6,3482.5,1.49319643]
[1735134228785,7.78692072,3482.6,3482.5,1.49319643]
[1735134230075,7.78692072,3482.6,3482.0,1.99131327]
[1735134230076,5.8715,3482.5,3481.4,2.06553675]
[1735134230241,3.76525785,3482.4,3481.4,2.06553675]
[1735134230880,3.76525785,3482.4,3481.5,0.99503461]
[1735134232149,3.76525785,3482.4,3481.4,0.57234032]
[1735134232348,3.76525785,3482.4,3481.4,1.01140676]
[1735134232685,0.85786584,3482.4,3481.6,0.8256]
[1735134237981,0.85786584,3482.4,3481.6,3.69781]
[1735134238176,0.85786584,3482.4,3481.6,0.8256]
[1735134238396,0.85786584,3482.4,3481.6,3.69783]
[1735134238700,0.85786584,3482.4,3481.4,3.88380676]
[1735134238905,0.85786584,3482.4,3481.5,3.68119343]
[1735134239508,0.85786584,3482.4,3481.7,0.7861]
[1735134240314,0.85786584,3482.4,3481.9,2.87198]
[1735134242254,0.85786584,3482.4,3481.5,0.80887343]
[1735134242255,0.03556584,3482.4,3481.8,0.7861]
[1735134242400,0.03556584,3482.4,3482.3,9.94643133]
[1735134242602,1.98420686,3483.6,3483.0,3.65717]
[1735134242801,1.98420686,3483.6,3483.0,0.7861]
[1735134243404,0.03026903,3483.5,3482.9,2.87116]
[1735134245962,0.7898,3483.6,3482.9,2.87116]
[1735134246121,0.03026903,3483.4,3482.9,2.87116]
[1735134246330,0.7898,3483.6,3483.0,0.365726]
[1735134246524,0.03026903,3483.3,3483.0,0.365726]
[1735134246737,0.7898,3483.6,3483.0,0.365726]
[1735134247125,0.03026903,3483.5,3483.0,0.365726]
[1735134248345,0.03026903,3483.5,3483.0,3.236806]
[1735134248514,0.03026903,3483.5,3483.1,0.3236806]
[1735134249311,0.03026903,3483.5,3482.9,2.87116]
[1735134257189,0.03026903,3483.5,3483.0,2.87108]
[1735134266771,0.03026903,3483.5,3482.8,0.55]
[1735134266979,0.03026903,3483.5,3483.4,4.19655]
[1735134267196,1.99820686,3484.3,3484.0,2.87018]
[1735134267503,0.02767788,3484.2,3484.1,2.87016]
[1735134267659,1.19440686,3484.3,3484.1,2.87016]
[1735134267859,0.02767788,3484.2,3484.1,2.87016]
[1735134268091,1.19440686,3484.3,3484.1,2.87016]
[1735134268299,0.02767788,3484.2,3484.1,2.87016]
[1735134268499,1.19440686,3484.3,3484.1,2.87016]
[1735134268690,0.02767788,3484.2,3484.1,2.87016]
[1735134269002,0.8038,3484.5,3484.1,2.87016]
[1735134269202,0.02767788,3484.2,3484.1,2.87016]
[1735134269385,0.8038,3484.5,3483.8,2.87035]
[1735134269761,0.02767788,3484.4,3483.9,2.87034]
[1735134278310,0.7588,3484.3,3483.0,1.20492749]
[1735134278514,0.7588,3483.9,3483.0,1.20492749]
[1735134278670,0.7588,3483.9,3483.0,4.07599749]
[1735134278870,0.02810231,3483.8,3483.0,4.07599749]
[1735134279183,0.02810231,3483.8,3483.0,1.20492749]
[1735134279512,0.7588,3483.9,3483.2,2.8709]
[1735134279682,0.02810231,3483.8,3483.2,2.8709]
[1735134279883,0.7588,3483.9,3483.2,2.8709]
[1735134280082,0.02810231,3483.8,3483.2,2.8709]
[1735134280298,0.7588,3483.9,3483.2,2.8709]
[1735134280609,0.02810231,3483.8,3483.2,2.8709]
[1735134280810,0.02810231,3483.8,3483.2,3.22045674]
[1735134282511,0.02810231,3483.8,3483.2,2.8709]
[1735134283316,0.02810231,3483.8,3482.9,2.87109]
[1735134283472,0.7588,3483.7,3482.8,3.8245]
[1735134283677,0.02810231,3483.6,3482.8,6.69571]
[1735134283921,0.7588,3483.7,3482.8,6.69571]
[1735134284218,0.7588,3483.5,3482.8,2.87121]
[1735134284421,0.7588,3483.5,3482.6,4.07632749]
[1735134284585,0.7588,3483.5,3482.6,1.20492749]
[1735134284787,0.02779418,3483.4,3482.8,2.87124]
[1735134286485,0.02779418,3483.4,3482.9,2.87116]
[1735134287085,0.02779418,3483.4,3483.1,2.871]
[1735134288423,0.02779418,3483.4,3483.3,2.87084]
[1735134288725,1.19440686,3484.0,3483.8,2.87041]
[1735134288894,0.02691559,3483.9,3483.8,2.87041]
[1735134289225,0.02691559,3483.9,3483.8,4.24491]
[1735134289523,1.19440686,3484.2,3484.1,2.87018]
[1735134289867,1.22147944,3484.2,3484.1,2.87018]
[1735134290318,0.02707258,3484.2,3484.1,2.87018]
[1735134290478,0.7588,3484.7,3484.1,2.87018]
[1735134290680,0.0272993,3484.6,3484.1,2.87018]
[1735134291486,0.0272993,3484.6,3483.9,3.42032]
[1735134291822,0.0272993,3484.6,3483.9,3.80819887]
[1735134294431,0.0272993,3484.6,3483.8,0.8245]
[1735134303207,0.0272993,3484.6,3483.8,3.69492]
[1735134303951,0.0272993,3484.6,3483.9,2.87032]
[1735134304134,0.0272993,3484.6,3483.9,0.55]
[1735134304446,0.0272993,3484.6,3484.0,0.01870666]
[1735134304646,0.0272993,3484.6,3484.5,3.41985]
[1735134304805,1.96730686,3485.0,3484.6,2.86976]
[1735134305210,1.96730686,3485.0,3484.3,2.86997]
[1735134306454,0.8113,3485.0,3484.0,3.42025]
[1735134306648,0.8113,3485.0,3484.0,4.41402401]
[1735134307918,0.8113,3485.0,3484.0,0.99377401]
[1735134307919,2.86952,3484.9,3484.0,0.99377401]
[1735134308124,2.86952,3484.9,3483.8,5.60907133]
[1735134308125,0.84711201,3484.8,3483.8,2.8704]
[1735134308655,0.8113,3484.8,3483.8,2.8704]
[1735134309796,2.86971,3484.7,3483.6,2.5529154]
[1735134309984,0.8113,3484.5,3483.6,5.4234854]
[1735134310758,0.8113,3484.2,3483.6,1.20492749]
[1735134310949,0.8113,3484.1,3483.6,1.20492749]
[1735134311352,0.8113,3483.9,3483.4,1.20492749]
[1735134311675,0.8113,3483.7,3483.4,1.20492749]
[1735134311872,3.68187,3483.7,3483.4,1.20492749]
[1735134312260,0.02696268,3483.6,3483.4,1.20492749]
[1735134312497,0.02696268,3483.6,3482.8,1.49031971]
[1735134313022,0.02696268,3483.6,3482.8,4.49031971]
[1735134313608,0.02696268,3483.6,3482.8,5.48389654]
[1735134314597,0.8113,3483.5,3482.8,2.48389654]
[1735134314990,0.02652648,3483.4,3482.8,3.70792653]
[1735134315277,0.02652648,3483.4,3482.9,2.87114]
[1735134317684,0.02652648,3483.4,3482.8,0.83675653]
[1735134318039,0.02652648,3483.4,3482.7,1.76708019]
[1735134318222,0.8113,3483.3,3482.7,1.20492749]
[1735134318763,0.02652648,3483.2,3482.7,1.20492749]
[1735134319047,0.02652648,3483.2,3482.9,2.8711]
[1735134319183,0.8113,3483.8,3483.0,0.55]
[1735134319381,1.19440686,3484.0,3483.4,2.87068]
[1735134319580,0.02652648,3483.7,3483.4,2.87068]
[1735134319793,1.19440686,3484.0,3483.4,2.87068]
[1735134319993,0.02564227,3483.6,3483.4,2.87068]
[1735134320222,1.19440686,3484.0,3483.4,3.234398]
[1735134320391,0.02564227,3483.5,3483.2,2.87091]
[1735134320734,1.23021887,3484.0,3483.2,2.87091]
[1735134320943,0.03581201,3484.0,3483.2,2.87091]
[1735134321082,0.02564227,3483.9,3483.2,2.87091]
[1735134322202,0.02564227,3483.9,3483.3,2.87082]
[1735134322533,0.02564227,3483.8,3483.4,0.363732]
[1735134322752,0.8113,3484.1,3483.4,0.363732]
[1735134323078,0.02564227,3484.0,3483.1,0.7665]
[1735134323282,0.06145428,3484.0,3483.1,3.63748]
[1735134323542,0.06145428,3484.0,3482.9,1.20492749]
[1735134323543,0.8152,3483.9,3483.2,2.87091]
[1735134323734,0.8152,3483.9,3483.0,0.55]
[1735134323898,0.02564227,3483.8,3483.2,2.87088]
[1735134324784,0.02564227,3483.8,3483.5,0.7723]
[1735134325047,0.02564227,3483.8,3483.5,3.64295]
[1735134325222,0.8152,3484.2,3483.5,3.64295]
[1735134325383,0.02576443,3483.7,3483.5,3.64295]
[1735134325583,0.8152,3484.2,3483.5,3.64295]
[1735134326283,0.02576443,3484.1,3483.2,0.7723]
[1735134326612,0.02576443,3484.1,3483.3,3.51271864]
[1735134328351,0.02576443,3484.1,3483.3,0.64188864]
[1735134328661,0.8152,3484.0,3483.1,3.89155887]
[1735134328961,0.84074927,3484.0,3483.2,2.87088]
[1735134330317,0.84074927,3484.0,3483.3,2.87082]
[1735134332064,0.84074927,3484.0,3483.4,2.87075]
[1735134332206,0.84074927,3484.0,3483.5,3.157735]
[1735134333746,0.84074927,3484.0,3483.5,0.287075]
[1735134333960,0.84074927,3484.0,3483.3,4.07573749]
[1735134334133,3.68562,3483.9,3483.3,1.20492749]
[1735134334331,0.02551437,3483.8,3483.3,1.20492749]
[1735134334733,0.02551437,3483.8,3483.1,1.20492749]
[1735134335043,3.68562,3483.9,3483.1,1.20492749]
[1735134335845,3.68562,3483.9,3483.0,1.48966287]
[1735134336045,4.054182,3483.9,3483.0,1.48966287]
[1735134336344,0.85091437,3483.8,3483.0,1.48966287]
[1735134337145,0.8254,3483.8,3483.0,1.48966287]
[1735134337521,0.8254,3483.8,3483.0,0.99315719]
[1735134337716,0.8254,3483.8,3483.0,3.86421719]
[1735134338044,0.8254,3483.8,3483.1,0.38642172]
[1735134338234,0.8254,3483.8,3483.1,2.871]
[1735134341670,0.8254,3483.8,3482.8,1.20492749]
[1735134341870,0.8056,3483.6,3482.8,1.20492749]
[1735134343136,0.8056,3483.5,3482.8,1.20492749]
[1735134343903,0.8056,3483.5,3482.6,3.43258535]
[1735134344178,0.8056,3483.5,3482.7,0.69211277]
[1735134344545,0.8056,3483.4,3482.7,0.69211277]
[1735134344770,0.8056,3483.4,3482.6,0.56117535]
[1735134346072,0.8056,3483.4,3482.3,1.20492749]
[1735134346279,0.8056,3483.2,3482.3,1.20492749]
[1735134346441,0.8056,3483.2,3482.3,4.07653749]
[1735134346641,0.8056,3483.2,3482.4,2.87156]
[1735134348582,0.8056,3483.1,3482.2,3.44842524]
[1735134348789,0.8056,3482.9,3482.2,0.57670524]
[1735134349991,0.8056,3482.9,3482.1,1.20492749]
[1735134350221,0.8056,3482.9,3482.2,2.87173]
[1735134351915,0.8056,3482.9,3482.0,4.07682749]
[1735134352128,0.8056,3482.9,3482.0,1.20492749]
[1735134352276,0.822,3482.8,3482.0,1.20492749]
[1735134353107,0.822,3482.8,3482.1,0.99266963]
[1735134353419,0.822,3482.6,3482.1,0.99266963]
[1735134354118,0.822,3483.3,3482.2,0.7876]
[1735134354729,1.19440686,3483.3,3482.5,1.3376]
[1735134354932,1.19440686,3483.3,3482.6,0.18876]
[1735134355077,1.19440686,3483.3,3482.9,2.87109]
[1735134356183,0.822,3483.6,3482.9,2.87109]
[1735134357545,0.822,3483.6,3483.0,2.48106387]
[1735134358561,0.7619,3483.4,3483.0,2.48106387]
[1735134358869,0.7619,3483.4,3482.6,1.20492749]
[1735134359502,0.7619,3483.2,3482.6,1.20492749]
[1735134359704,0.03581201,3483.1,3482.6,1.20492749]
[1735134360049,0.7619,3483.0,3482.6,1.20492749]
[1735134360246,0.7619,3483.0,3482.7,0.99250346]
[1735134360604,3.9998652,3483.0,3482.7,0.99250346]
[1735134361054,0.7619,3482.9,3482.7,0.99250346]
[1735134361553,0.7619,3482.9,3482.1,1.48875519]
[1735134362958,0.7619,3482.9,3482.2,0.99278404]
[1735134363568,0.7619,3482.8,3482.2,0.99278404]
[1735134363859,0.7619,3482.6,3482.2,0.99278404]